[Event "Late-Titled-Tuesday-Blitz-December-26-2023"]
[Site "Chess.com"]
[Date "2023.12.26"]
[Round "7"]
[White "Statham_l3"]
[Black "misterlamine"]
[Result "1-0"]
[WhiteElo "2567"]
[BlackElo "2443"]
[TimeControl "180+1"]
[EndTime "15:17:16 PST"]
[Termination "Statham_l3 won by checkmate"]

1. e4 {[%clk 0:03:00.9]} 1... c5 {[%clk 0:02:41.4]} 2. Nf3 {[%clk 0:03:00.8]}
2... d6 {[%clk 0:02:41.6]} 3. d4 {[%clk 0:03:01.3]} 3... cxd4 {[%clk 0:02:42.5]}
4. Nxd4 {[%clk 0:03:02.2]} 4... Nf6 {[%clk 0:02:42.7]} 5. Nc3 {[%clk 0:03:02.9]}
5... a6 {[%clk 0:02:43]} 6. h3 {[%clk 0:03:02.9]} 6... e5 {[%clk 0:02:41.7]} 7.
Nde2 {[%clk 0:03:03.4]} 7... Be6 {[%clk 0:02:42.2]} 8. g4 {[%clk 0:03:03]} 8...
d5 {[%clk 0:02:40.2]} 9. g5 {[%clk 0:02:45]} 9... Nxe4 {[%clk 0:02:36.8]} 10.
Nxe4 {[%clk 0:02:45.3]} 10... dxe4 {[%clk 0:02:37]} 11. Qxd8+ {[%clk 0:02:46.2]}
11... Kxd8 {[%clk 0:02:37.6]} 12. Be3 {[%clk 0:02:43.8]} 12... Kc7 {[%clk
0:02:35.2]} 13. Bg2 {[%clk 0:02:41.3]} 13... Nd7 {[%clk 0:02:35.6]} 14. O-O-O
{[%clk 0:02:34.8]} 14... Nc5 {[%clk 0:02:32.7]} 15. Nc3 {[%clk 0:02:29.2]} 15...
Be7 {[%clk 0:02:30.4]} 16. Nd5+ {[%clk 0:02:19.3]} 16... Bxd5 {[%clk 0:02:27.3]}
17. Rxd5 {[%clk 0:02:20.2]} 17... Kc6 {[%clk 0:02:25.3]} 18. Rhd1 {[%clk
0:01:46.4]} 18... Rhd8 {[%clk 0:02:17.3]} 19. Bxc5 {[%clk 0:01:11.9]} 19... Rxd5
{[%clk 0:02:03.6]} 20. Bxe7 {[%clk 0:01:10.3]} 20... Rxd1+ {[%clk 0:02:03]} 21.
Kxd1 {[%clk 0:01:11.2]} 21... Kd5 {[%clk 0:02:00]} 22. Ke2 {[%clk 0:01:06.3]}
22... Re8 {[%clk 0:01:59.5]} 23. Bb4 {[%clk 0:01:01.5]} 23... f5 {[%clk
0:01:59.4]} 24. gxf6 {[%clk 0:00:59.3]} 24... gxf6 {[%clk 0:01:59.1]} 25. b3
{[%clk 0:00:33.7]} 25... Rg8 {[%clk 0:01:54.6]} 26. Bf1 {[%clk 0:00:17.5]} 26...
f5 {[%clk 0:01:52.5]} 27. c4+ {[%clk 0:00:15.8]} 27... Kd4 {[%clk 0:01:49]} 28.
Kd2 {[%clk 0:00:13.8]} 28... Rg1 {[%clk 0:01:30.4]} 29. Be2 {[%clk 0:00:11.1]}
29... Rh1 {[%clk 0:01:19.1]} 30. Be7 {[%clk 0:00:06.7]} 30... Rxh3 {[%clk
0:01:16.3]} 31. b4 {[%clk 0:00:05.6]} 31... b6 {[%clk 0:01:13.6]} 32. Bd8 {[%clk
0:00:05.7]} 32... e3+ {[%clk 0:01:08.4]} 33. fxe3+ {[%clk 0:00:05.3]} 33... Ke4
{[%clk 0:01:09.1]} 34. Bxb6 {[%clk 0:00:04.5]} 34... Rh2 {[%clk 0:01:09.3]} 35.
c5 {[%clk 0:00:03.7]} 35... f4 {[%clk 0:01:09.3]} 36. exf4 {[%clk 0:00:04.6]}
36... exf4 {[%clk 0:01:10.2]} 37. c6 {[%clk 0:00:04.4]} 37... f3 {[%clk
0:01:10.2]} 38. c7 {[%clk 0:00:03.7]} 38... Rxe2+ {[%clk 0:01:10.7]} 39. Kd1
{[%clk 0:00:02.6]} 39... Rxa2 {[%clk 0:00:40.9]} 40. c8=Q {[%clk 0:00:03.3]}
40... Ra1+ {[%clk 0:00:38.9]} 41. Kd2 {[%clk 0:00:04.2]} 41... Ra2+ {[%clk
0:00:39.3]} 42. Kc3 {[%clk 0:00:04.9]} 42... Kf4 {[%clk 0:00:39]} 43. Qc7+
{[%clk 0:00:05.2]} 43... Kg4 {[%clk 0:00:38.2]} 44. Qg7+ {[%clk 0:00:05.9]}
44... Kh3 {[%clk 0:00:38.3]} 45. Qxh7+ {[%clk 0:00:06.1]} 45... Kg2 {[%clk
0:00:39.2]} 46. Qg8+ {[%clk 0:00:06.4]} 46... Kf1 {[%clk 0:00:39.8]} 47. Qxa2
{[%clk 0:00:07.3]} 47... Ke1 {[%clk 0:00:38]} 48. Qf2+ {[%clk 0:00:08.2]} 48...
Kd1 {[%clk 0:00:37.9]} 49. Be3 {[%clk 0:00:09.1]} 49... a5 {[%clk 0:00:37.1]}
50. Qd2# {[%clk 0:00:10]} 1-0

[Event "Late-Titled-Tuesday-Blitz-December-26-2023"]
[Site "Chess.com"]
[Date "2023.12.26"]
[Round "7"]
[White "slidingknight2775"]
[Black "TST2014"]
[Result "0-1"]
[WhiteElo "2676"]
[BlackElo "2600"]
[TimeControl "180+1"]
[EndTime "15:17:17 PST"]
[Termination "TST2014 won by checkmate"]

1. Nf3 {[%clk 0:03:00.9]} 1... Nf6 {[%clk 0:02:59.7]} 2. g3 {[%clk 0:03:01.3]}
2... g6 {[%clk 0:02:57.7]} 3. Bg2 {[%clk 0:03:01.7]} 3... Bg7 {[%clk 0:02:58.6]}
4. O-O {[%clk 0:03:02.3]} 4... O-O {[%clk 0:02:59.5]} 5. c4 {[%clk 0:03:02.9]}
5... c5 {[%clk 0:02:56.5]} 6. Nc3 {[%clk 0:02:53.3]} 6... Nc6 {[%clk 0:02:54.7]}
7. d3 {[%clk 0:02:51.3]} 7... d5 {[%clk 0:02:51.9]} 8. cxd5 {[%clk 0:02:51.2]}
8... Nxd5 {[%clk 0:02:52.8]} 9. Bd2 {[%clk 0:02:50.9]} 9... Nc7 {[%clk 0:02:41]}
10. Rc1 {[%clk 0:02:49.7]} 10... b6 {[%clk 0:02:34.9]} 11. Qa4 {[%clk
0:02:36.4]} 11... Bb7 {[%clk 0:02:33.1]} 12. Qh4 {[%clk 0:02:35.2]} 12... Qd7
{[%clk 0:02:24.1]} 13. Bh6 {[%clk 0:02:27.2]} 13... Ne6 {[%clk 0:02:04.1]} 14.
Ne4 {[%clk 0:02:12]} 14... Ncd4 {[%clk 0:01:56.8]} 15. Nxd4 {[%clk 0:02:07.7]}
15... Nxd4 {[%clk 0:01:54.8]} 16. Bxg7 {[%clk 0:01:43.5]} 16... Nxe2+ {[%clk
0:01:46.2]} 17. Kh1 {[%clk 0:01:44.1]} 17... Kxg7 {[%clk 0:01:46.2]} 18. Rce1
{[%clk 0:01:33]} 18... Nd4 {[%clk 0:01:35.4]} 19. f3 {[%clk 0:00:49.5]} 19...
Rfe8 {[%clk 0:01:30.7]} 20. a3 {[%clk 0:00:38.6]} 20... Rad8 {[%clk 0:01:25.4]}
21. b4 {[%clk 0:00:32.5]} 21... cxb4 {[%clk 0:01:22.5]} 22. axb4 {[%clk
0:00:33.4]} 22... Nf5 {[%clk 0:01:22.5]} 23. Qf4 {[%clk 0:00:31.1]} 23... Qxd3
{[%clk 0:01:21.1]} 24. Qe5+ {[%clk 0:00:25.5]} 24... f6 {[%clk 0:01:12.6]} 25.
Qa1 {[%clk 0:00:18.4]} 25... Ne3 {[%clk 0:01:03.9]} 26. Qxa7 {[%clk 0:00:19]}
26... Bxe4 {[%clk 0:01:01]} 27. fxe4 {[%clk 0:00:05.9]} 27... Nxf1 {[%clk
0:00:57.3]} 28. Rxf1 {[%clk 0:00:06.8]} 28... b5 {[%clk 0:00:54.3]} 29. e5
{[%clk 0:00:06.2]} 29... f5 {[%clk 0:00:53]} 30. e6 {[%clk 0:00:06.4]} 30... Qd4
{[%clk 0:00:44.1]} 31. Qc7 {[%clk 0:00:03.1]} 31... Qc4 {[%clk 0:00:43.2]} 32.
Qb7 {[%clk 0:00:02.6]} 32... Rb8 {[%clk 0:00:41.8]} 33. Qa7 {[%clk 0:00:02.5]}
33... Qxb4 {[%clk 0:00:39.9]} 34. Bc6 {[%clk 0:00:02.6]} 34... Red8 {[%clk
0:00:35.8]} 35. Rf4 {[%clk 0:00:03]} 35... Qe1+ {[%clk 0:00:30.5]} 36. Kg2
{[%clk 0:00:03.2]} 36... Qxe6 {[%clk 0:00:30.6]} 37. Bf3 {[%clk 0:00:02.3]}
37... Rd2+ {[%clk 0:00:30.1]} 38. Kh3 {[%clk 0:00:02.4]} 38... Rbd8 {[%clk
0:00:30.1]} 39. Qa1+ {[%clk 0:00:01.5]} 39... Qf6 {[%clk 0:00:29.6]} 40. Qa7
{[%clk 0:00:01.3]} 40... g5 {[%clk 0:00:29.5]} 41. Rxf5 {[%clk 0:00:02.1]} 41...
Qxf5+ {[%clk 0:00:29.2]} 42. Bg4 {[%clk 0:00:03]} 42... Qf1# {[%clk 0:00:28.1]}
0-1

[Event "Late-Titled-Tuesday-Blitz-December-26-2023"]
[Site "Chess.com"]
[Date "2023.12.26"]
[Round "7"]
[White "Sanyura"]
[Black "Fan_Of_Chucky"]
[Result "1-0"]
[WhiteElo "2609"]
[BlackElo "2462"]
[TimeControl "180+1"]
[EndTime "15:17:17 PST"]
[Termination "Sanyura won on time"]

1. Nf3 {[%clk 0:03:00.9]} 1... Nf6 {[%clk 0:02:54.9]} 2. g3 {[%clk 0:03:01.3]}
2... g6 {[%clk 0:02:54.9]} 3. Bg2 {[%clk 0:03:02.2]} 3... Bg7 {[%clk 0:02:55.4]}
4. O-O {[%clk 0:03:02.5]} 4... O-O {[%clk 0:02:55.9]} 5. d4 {[%clk 0:03:03.4]}
5... d5 {[%clk 0:02:56.1]} 6. c4 {[%clk 0:03:04]} 6... dxc4 {[%clk 0:02:56]} 7.
Nc3 {[%clk 0:03:04.6]} 7... c6 {[%clk 0:02:54.1]} 8. e4 {[%clk 0:03:03.6]} 8...
b5 {[%clk 0:02:53.7]} 9. a3 {[%clk 0:03:03.3]} 9... Bb7 {[%clk 0:02:52.9]} 10.
Qe2 {[%clk 0:03:03.6]} 10... a6 {[%clk 0:02:51.2]} 11. Bg5 {[%clk 0:03:02.3]}
11... Nbd7 {[%clk 0:02:46.8]} 12. Rad1 {[%clk 0:03:02.4]} 12... h6 {[%clk
0:02:35.1]} 13. Bf4 {[%clk 0:02:57.4]} 13... a5 {[%clk 0:02:26.8]} 14. e5 {[%clk
0:02:48.3]} 14... Nd5 {[%clk 0:02:23.3]} 15. Nxd5 {[%clk 0:02:48.3]} 15... cxd5
{[%clk 0:02:24.2]} 16. e6 {[%clk 0:02:49.2]} 16... fxe6 {[%clk 0:02:07.2]} 17.
Qxe6+ {[%clk 0:02:48.7]} 17... Kh7 {[%clk 0:02:07.1]} 18. Rfe1 {[%clk 0:02:46]}
18... Re8 {[%clk 0:02:01.1]} 19. Nh4 {[%clk 0:02:42.2]} 19... Ra6 {[%clk
0:01:59.4]} 20. Qh3 {[%clk 0:02:26.2]} 20... Nf6 {[%clk 0:01:44.2]} 21. Nf3
{[%clk 0:02:02.6]} 21... Ne4 {[%clk 0:01:33.8]} 22. Ng5+ {[%clk 0:01:42]} 22...
Nxg5 {[%clk 0:01:24.8]} 23. Bxg5 {[%clk 0:01:42.9]} 23... Qd6 {[%clk 0:01:07.3]}
24. Qh4 {[%clk 0:01:29.6]} 24... e5 {[%clk 0:00:53.6]} 25. dxe5 {[%clk
0:00:32.1]} 25... Rxe5 {[%clk 0:00:48.2]} 26. Bf4 {[%clk 0:00:32.5]} 26... Rxe1+
{[%clk 0:00:45.7]} 27. Rxe1 {[%clk 0:00:33.4]} 27... Qf6 {[%clk 0:00:21]} 28.
Re7 {[%clk 0:00:33.4]} 28... g5 {[%clk 0:00:08.1]} 29. Bxg5 {[%clk 0:00:33.7]}
29... Qxg5 {[%clk 0:00:08.3]} 30. Qxg5 {[%clk 0:00:34.3]} 30... hxg5 {[%clk
0:00:08.8]} 31. Rxb7 {[%clk 0:00:35.2]} 31... d4 {[%clk 0:00:05]} 32. Rxb5
{[%clk 0:00:27.2]} 32... d3 {[%clk 0:00:05]} 33. Rc5 {[%clk 0:00:18.6]} 33... d2
{[%clk 0:00:04.1]} 34. Bf3 {[%clk 0:00:18.4]} 34... Bxb2 {[%clk 0:00:04.1]} 35.
Rxc4 {[%clk 0:00:17]} 35... Bxa3 {[%clk 0:00:04]} 36. h4 {[%clk 0:00:15.8]}
36... g4 {[%clk 0:00:04]} 37. Rxg4 {[%clk 0:00:15.9]} 37... Rb6 {[%clk
0:00:03.2]} 38. Rd4 {[%clk 0:00:15.6]} 38... Rb1+ {[%clk 0:00:02.9]} 39. Kg2
{[%clk 0:00:16.1]} 39... Bb4 {[%clk 0:00:03.2]} 40. Be4+ {[%clk 0:00:16.7]}
40... Kg7 {[%clk 0:00:03]} 41. Bxb1 {[%clk 0:00:17.6]} 1-0

[Event "Late-Titled-Tuesday-Blitz-December-26-2023"]
[Site "Chess.com"]
[Date "2023.12.26"]
[Round "7"]
[White "johnmez"]
[Black "Balla_Tamas"]
[Result "0-1"]
[WhiteElo "2299"]
[BlackElo "2426"]
[TimeControl "180+1"]
[EndTime "15:17:18 PST"]
[Termination "Balla_Tamas won by resignation"]

1. d4 {[%clk 0:03:00.9]} 1... d5 {[%clk 0:02:44.2]} 2. c4 {[%clk 0:03:00.8]}
2... e6 {[%clk 0:02:42.2]} 3. Nc3 {[%clk 0:03:00.8]} 3... c5 {[%clk 0:02:42.6]}
4. cxd5 {[%clk 0:02:59.8]} 4... exd5 {[%clk 0:02:43.5]} 5. Nf3 {[%clk
0:02:59.5]} 5... Nc6 {[%clk 0:02:43.9]} 6. g3 {[%clk 0:02:59.7]} 6... Nf6 {[%clk
0:02:43.9]} 7. Bg2 {[%clk 0:02:59.7]} 7... cxd4 {[%clk 0:02:44.5]} 8. Nxd4
{[%clk 0:02:59.4]} 8... Bc5 {[%clk 0:02:45.2]} 9. Nxc6 {[%clk 0:02:55.5]} 9...
bxc6 {[%clk 0:02:44.8]} 10. O-O {[%clk 0:02:55]} 10... O-O {[%clk 0:02:45]} 11.
Bg5 {[%clk 0:02:48.3]} 11... Re8 {[%clk 0:02:32.8]} 12. Rc1 {[%clk 0:02:45.9]}
12... Ba6 {[%clk 0:02:29.1]} 13. Bf3 {[%clk 0:02:33.4]} 13... Bb6 {[%clk
0:01:50.9]} 14. Qa4 {[%clk 0:02:22]} 14... Bb7 {[%clk 0:01:42.5]} 15. Rfd1
{[%clk 0:02:11.4]} 15... h6 {[%clk 0:01:39]} 16. Bf4 {[%clk 0:02:11.1]} 16...
Qe7 {[%clk 0:01:33.3]} 17. Rc2 {[%clk 0:01:54.5]} 17... Rad8 {[%clk 0:01:28.3]}
18. h4 {[%clk 0:01:36.7]} 18... d4 {[%clk 0:01:18.4]} 19. Nb1 {[%clk 0:01:34.7]}
19... c5 {[%clk 0:01:15.3]} 20. Bxb7 {[%clk 0:01:27.3]} 20... Qxb7 {[%clk
0:01:16.2]} 21. Na3 {[%clk 0:01:19.1]} 21... Nd5 {[%clk 0:01:08.1]} 22. Bc1
{[%clk 0:01:18.5]} 22... Qd7 {[%clk 0:00:43.1]} 23. Qc4 {[%clk 0:01:05.2]} 23...
Qg4 {[%clk 0:00:38.2]} 24. Qd3 {[%clk 0:00:51.6]} 24... Rd6 {[%clk 0:00:33.2]}
25. Nc4 {[%clk 0:00:49.3]} 25... Rf6 {[%clk 0:00:26.5]} 26. e4 {[%clk
0:00:37.8]} 26... Nb4 {[%clk 0:00:25.9]} 27. Qe2 {[%clk 0:00:36.2]} 27... Qg6
{[%clk 0:00:17.9]} 28. Rcd2 {[%clk 0:00:32.5]} 28... Rxe4 {[%clk 0:00:17.8]} 29.
Qf1 {[%clk 0:00:30.4]} 29... Rg4 {[%clk 0:00:16.8]} 30. Ne5 {[%clk 0:00:27.1]}
30... Rxg3+ {[%clk 0:00:14.3]} 31. fxg3 {[%clk 0:00:17.8]} 31... Rxf1+ {[%clk
0:00:14.4]} 32. Rxf1 {[%clk 0:00:18.1]} 32... Qxg3+ {[%clk 0:00:14.1]} 33. Rg2
{[%clk 0:00:17.5]} 33... Qxe5 {[%clk 0:00:14.2]} 34. Bxh6 {[%clk 0:00:16.5]}
34... g6 {[%clk 0:00:10.7]} 35. Rgf2 {[%clk 0:00:14.3]} 35... Qg3+ {[%clk
0:00:07.1]} 36. Rg2 {[%clk 0:00:14.2]} 36... Qxh4 {[%clk 0:00:07]} 37. Bg5
{[%clk 0:00:14.6]} 37... Qe4 {[%clk 0:00:04.7]} 38. Bf6 {[%clk 0:00:14.8]} 38...
Bc7 {[%clk 0:00:04.7]} 39. Bh4 {[%clk 0:00:11.1]} 39... Qxh4 {[%clk 0:00:04.4]}
0-1

[Event "Late-Titled-Tuesday-Blitz-December-26-2023"]
[Site "Chess.com"]
[Date "2023.12.26"]
[Round "7"]
[White "venturov"]
[Black "chessajedrezz2020"]
[Result "1-0"]
[WhiteElo "2503"]
[BlackElo "2755"]
[TimeControl "180+1"]
[EndTime "15:17:20 PST"]
[Termination "venturov won on time"]

1. e4 {[%clk 0:03:00.9]} 1... e5 {[%clk 0:02:52.4]} 2. Bc4 {[%clk 0:02:51.2]}
2... Nc6 {[%clk 0:02:37]} 3. Nc3 {[%clk 0:02:51]} 3... Nf6 {[%clk 0:02:32.5]} 4.
d3 {[%clk 0:02:49.8]} 4... d6 {[%clk 0:02:30.2]} 5. f4 {[%clk 0:02:49.5]} 5...
Na5 {[%clk 0:02:30.1]} 6. Bb3 {[%clk 0:02:38.2]} 6... Nxb3 {[%clk 0:02:29.7]} 7.
axb3 {[%clk 0:02:39.1]} 7... exf4 {[%clk 0:02:24.9]} 8. Bxf4 {[%clk 0:02:35.7]}
8... Be7 {[%clk 0:02:25.4]} 9. Nf3 {[%clk 0:02:35.4]} 9... O-O {[%clk
0:02:24.8]} 10. O-O {[%clk 0:02:35.4]} 10... Be6 {[%clk 0:01:51.1]} 11. Kh1
{[%clk 0:02:33]} 11... d5 {[%clk 0:01:46.6]} 12. exd5 {[%clk 0:02:27.6]} 12...
Nxd5 {[%clk 0:01:46.3]} 13. Nxd5 {[%clk 0:02:26.5]} 13... Bxd5 {[%clk
0:01:46.9]} 14. Be5 {[%clk 0:02:17]} 14... f6 {[%clk 0:01:16]} 15. Bg3 {[%clk
0:02:12.4]} 15... Bc5 {[%clk 0:00:56.7]} 16. d4 {[%clk 0:01:49.7]} 16... Bd6
{[%clk 0:00:48]} 17. Bxd6 {[%clk 0:01:47.2]} 17... Qxd6 {[%clk 0:00:47.2]} 18.
c4 {[%clk 0:01:43.4]} 18... Bxf3 {[%clk 0:00:31.4]} 19. Rxf3 {[%clk 0:01:40.4]}
19... a6 {[%clk 0:00:28.6]} 20. d5 {[%clk 0:01:28.8]} 20... Rae8 {[%clk
0:00:26.9]} 21. Qd4 {[%clk 0:01:20.6]} 21... Re5 {[%clk 0:00:25.1]} 22. Rd1
{[%clk 0:01:11.7]} 22... Rfe8 {[%clk 0:00:23.3]} 23. Rff1 {[%clk 0:01:11.3]}
23... Re4 {[%clk 0:00:21.8]} 24. Qf2 {[%clk 0:01:04.3]} 24... Re2 {[%clk
0:00:18.7]} 25. Qd4 {[%clk 0:01:02.5]} 25... R8e4 {[%clk 0:00:17.2]} 26. Qc3
{[%clk 0:01:02.8]} 26... Rh4 {[%clk 0:00:16]} 27. h3 {[%clk 0:00:56.5]} 27... b6
{[%clk 0:00:16.4]} 28. Rde1 {[%clk 0:00:49.1]} 28... Rhe4 {[%clk 0:00:15.3]} 29.
Rxe2 {[%clk 0:00:44.6]} 29... Rxe2 {[%clk 0:00:16.2]} 30. Re1 {[%clk 0:00:43.1]}
30... Rxe1+ {[%clk 0:00:15.8]} 31. Qxe1 {[%clk 0:00:44]} 31... Kf7 {[%clk
0:00:15.2]} 32. Qe4 {[%clk 0:00:39]} 32... Qe5 {[%clk 0:00:13.4]} 33. Qxh7
{[%clk 0:00:28.7]} 33... Qe1+ {[%clk 0:00:10]} 34. Kh2 {[%clk 0:00:29.1]} 34...
Qe5+ {[%clk 0:00:10.4]} 35. Kh1 {[%clk 0:00:29.6]} 35... Qxb2 {[%clk 0:00:06]}
36. Qh5+ {[%clk 0:00:26.6]} 36... Ke7 {[%clk 0:00:06]} 37. Qg4 {[%clk
0:00:18.7]} 37... Qa1+ {[%clk 0:00:04]} 38. Kh2 {[%clk 0:00:18.5]} 38... Qe5+
{[%clk 0:00:04.6]} 39. Kh1 {[%clk 0:00:19]} 39... g5 {[%clk 0:00:04.4]} 40. Qc8
{[%clk 0:00:14.7]} 40... a5 {[%clk 0:00:01.3]} 41. Qg8 {[%clk 0:00:13.6]} 1-0

[Event "Late-Titled-Tuesday-Blitz-December-26-2023"]
[Site "Chess.com"]
[Date "2023.12.26"]
[Round "7"]
[White "BogdanDeac"]
[Black "Genghis_K"]
[Result "0-1"]
[WhiteElo "3007"]
[BlackElo "2887"]
[TimeControl "180+1"]
[EndTime "15:17:21 PST"]
[Termination "Genghis_K won by resignation"]

1. d4 {[%clk 0:03:00.9]} 1... Nf6 {[%clk 0:02:59.9]} 2. c4 {[%clk 0:03:01.6]}
2... e6 {[%clk 0:03:00.2]} 3. Nf3 {[%clk 0:03:01.8]} 3... d5 {[%clk 0:03:00.4]}
4. g3 {[%clk 0:03:02.1]} 4... Bb4+ {[%clk 0:02:55]} 5. Nc3 {[%clk 0:03:01.6]}
5... O-O {[%clk 0:02:53.8]} 6. Bg2 {[%clk 0:03:02.2]} 6... dxc4 {[%clk
0:02:54.1]} 7. O-O {[%clk 0:03:02.9]} 7... Nc6 {[%clk 0:02:54.5]} 8. Qa4 {[%clk
0:03:03.1]} 8... Nd5 {[%clk 0:02:54.9]} 9. Qc2 {[%clk 0:03:02.8]} 9... Be7
{[%clk 0:02:48.8]} 10. Rd1 {[%clk 0:03:03.1]} 10... Rb8 {[%clk 0:02:47.1]} 11.
e4 {[%clk 0:03:01.1]} 11... Ncb4 {[%clk 0:02:46.7]} 12. Qd2 {[%clk 0:03:00.4]}
12... Nxc3 {[%clk 0:02:46.3]} 13. Qxc3 {[%clk 0:03:00.6]} 13... Nd3 {[%clk
0:02:31.7]} 14. Qxc4 {[%clk 0:02:54.1]} 14... Nxc1 {[%clk 0:02:31]} 15. Raxc1
{[%clk 0:02:54.7]} 15... c6 {[%clk 0:02:29.9]} 16. h4 {[%clk 0:02:54.7]} 16...
Qa5 {[%clk 0:02:27.7]} 17. a3 {[%clk 0:02:50.2]} 17... h6 {[%clk 0:02:27.4]} 18.
Ne5 {[%clk 0:02:47.4]} 18... Bf6 {[%clk 0:02:24.1]} 19. f4 {[%clk 0:01:51.6]}
19... a6 {[%clk 0:02:17.6]} 20. Qb3 {[%clk 0:01:47.2]} 20... Qb5 {[%clk
0:02:17.3]} 21. Qc3 {[%clk 0:01:40.1]} 21... Rd8 {[%clk 0:02:16.8]} 22. Nc4
{[%clk 0:01:28.3]} 22... c5 {[%clk 0:02:11.7]} 23. e5 {[%clk 0:01:26.1]} 23...
cxd4 {[%clk 0:02:08.4]} 24. Rxd4 {[%clk 0:01:05.7]} 24... Be7 {[%clk 0:01:29.7]}
25. Rxd8+ {[%clk 0:00:39.9]} 25... Bxd8 {[%clk 0:01:28.8]} 26. Nd6 {[%clk
0:00:40.4]} 26... Qb6+ {[%clk 0:01:28.9]} 27. Kh2 {[%clk 0:00:40.9]} 27... Bd7
{[%clk 0:01:29.1]} 28. Qd2 {[%clk 0:00:41.4]} 28... Bc6 {[%clk 0:01:22]} 29.
Bxc6 {[%clk 0:00:20.8]} 29... bxc6 {[%clk 0:01:22.3]} 30. b4 {[%clk 0:00:21.3]}
30... Be7 {[%clk 0:01:06.2]} 31. Qg2 {[%clk 0:00:16.5]} 31... Qe3 {[%clk
0:00:52.8]} 32. Qb2 {[%clk 0:00:15.9]} 32... a5 {[%clk 0:00:44.5]} 33. Rxc6
{[%clk 0:00:13.8]} 33... axb4 {[%clk 0:00:44.8]} 34. axb4 {[%clk 0:00:12.3]}
34... Bxh4 {[%clk 0:00:45]} 35. Qg2 {[%clk 0:00:11.6]} 35... Rxb4 {[%clk
0:00:37.2]} 36. Rc8+ {[%clk 0:00:11.1]} 36... Kh7 {[%clk 0:00:37.5]} 37. Nxf7
{[%clk 0:00:06.9]} 37... Bxg3+ {[%clk 0:00:14.8]} 38. Qxg3 {[%clk 0:00:07.1]}
38... Qe2+ {[%clk 0:00:15.3]} 39. Qg2 {[%clk 0:00:07]} 39... Qh5+ {[%clk
0:00:15.2]} 40. Qh3 {[%clk 0:00:02.7]} 40... Rb2+ {[%clk 0:00:15.1]} 41. Kg1
{[%clk 0:00:03.4]} 41... Qxh3 {[%clk 0:00:13.8]} 0-1

[Event "Late-Titled-Tuesday-Blitz-December-26-2023"]
[Site "Chess.com"]
[Date "2023.12.26"]
[Round "7"]
[White "GMBenjaminBok"]
[Black "Byniolus"]
[Result "1-0"]
[WhiteElo "2968"]
[BlackElo "2812"]
[TimeControl "180+1"]
[EndTime "15:17:26 PST"]
[Termination "GMBenjaminBok won on time"]

1. c4 {[%clk 0:03:00.9]} 1... d6 {[%clk 0:02:56.9]} 2. g3 {[%clk 0:02:56]} 2...
g6 {[%clk 0:02:56]} 3. Bg2 {[%clk 0:02:56]} 3... Bg7 {[%clk 0:02:56.7]} 4. Nc3
{[%clk 0:02:53.9]} 4... e5 {[%clk 0:02:54.7]} 5. Nf3 {[%clk 0:02:50.5]} 5... Ne7
{[%clk 0:02:49.4]} 6. d4 {[%clk 0:02:41]} 6... exd4 {[%clk 0:02:50.3]} 7. Nxd4
{[%clk 0:02:41]} 7... O-O {[%clk 0:02:50.3]} 8. O-O {[%clk 0:02:40.6]} 8... Nd7
{[%clk 0:02:50.9]} 9. Bf4 {[%clk 0:02:28.5]} 9... Nb6 {[%clk 0:02:35]} 10. Qd3
{[%clk 0:02:06.2]} 10... d5 {[%clk 0:02:35.3]} 11. c5 {[%clk 0:01:45.6]} 11...
Nc4 {[%clk 0:02:34.2]} 12. b3 {[%clk 0:01:31.3]} 12... Ne5 {[%clk 0:02:27]} 13.
Qe3 {[%clk 0:01:24.4]} 13... Ng4 {[%clk 0:02:21]} 14. Qd2 {[%clk 0:01:23.6]}
14... c6 {[%clk 0:01:57.1]} 15. Rad1 {[%clk 0:01:22.9]} 15... Nf6 {[%clk
0:01:48.3]} 16. Rfe1 {[%clk 0:01:14.9]} 16... Nf5 {[%clk 0:01:36.5]} 17. Nc2
{[%clk 0:01:10.5]} 17... Be6 {[%clk 0:01:21.2]} 18. Be5 {[%clk 0:01:06.8]} 18...
Ne4 {[%clk 0:01:07.2]} 19. Nxe4 {[%clk 0:01:06.1]} 19... Bxe5 {[%clk 0:01:07.6]}
20. Ng5 {[%clk 0:01:06.7]} 20... Qf6 {[%clk 0:00:56.6]} 21. Nxe6 {[%clk
0:00:59.4]} 21... fxe6 {[%clk 0:00:57.5]} 22. Rf1 {[%clk 0:00:59.1]} 22... Rad8
{[%clk 0:00:31.2]} 23. e3 {[%clk 0:00:59.3]} 23... Bc7 {[%clk 0:00:23.1]} 24.
Qe2 {[%clk 0:00:57.9]} 24... Rfe8 {[%clk 0:00:16]} 25. e4 {[%clk 0:00:52.5]}
25... Nh6 {[%clk 0:00:11.9]} 26. Rfe1 {[%clk 0:00:48.5]} 26... Rf8 {[%clk
0:00:08]} 27. b4 {[%clk 0:00:44.9]} 27... a6 {[%clk 0:00:05]} 28. f4 {[%clk
0:00:35]} 28... Nf7 {[%clk 0:00:04.6]} 29. e5 {[%clk 0:00:27.2]} 29... Qe7
{[%clk 0:00:04.8]} 30. Nd4 {[%clk 0:00:27.5]} 30... Nh6 {[%clk 0:00:05]} 31. Bh3
{[%clk 0:00:27.8]} 31... Nf5 {[%clk 0:00:04.3]} 32. Bxf5 {[%clk 0:00:27.9]}
32... gxf5 {[%clk 0:00:05.2]} 33. Kh1 {[%clk 0:00:28.3]} 33... Kh8 {[%clk
0:00:05.1]} 34. Rg1 {[%clk 0:00:28]} 34... Rg8 {[%clk 0:00:05.3]} 35. g4 {[%clk
0:00:28.4]} 35... fxg4 {[%clk 0:00:04.1]} 36. Rxg4 {[%clk 0:00:29.3]} 36... Rdf8
{[%clk 0:00:03.3]} 37. Rdg1 {[%clk 0:00:27.7]} 37... Rxg4 {[%clk 0:00:03.3]} 38.
Qxg4 {[%clk 0:00:27.2]} 38... a5 {[%clk 0:00:02.2]} 39. Nxe6 {[%clk 0:00:26.8]}
39... Re8 {[%clk 0:00:01.7]} 40. a3 {[%clk 0:00:22.8]} 40... axb4 {[%clk
0:00:01.9]} 41. axb4 {[%clk 0:00:23.7]} 41... Bb8 {[%clk 0:00:01.9]} 42. Ng5
{[%clk 0:00:15.5]} 42... Rf8 {[%clk 0:00:01.6]} 43. Rg3 {[%clk 0:00:13.9]} 43...
Qe8 {[%clk 0:00:01.6]} 44. Nxh7 {[%clk 0:00:11.5]} 1-0